Cogmind - Beta 14 @@@ ROGUE MODE // 2024.11.30 @ 11:40:27 Player: Fangrelle Result: Destroyed by Y-45 Defender with Heavy Assault Rifle Performance ------------- Evolutions (0) 0 Regions Visited (2) 400 Robots Destroyed (27) 135 Value Destroyed (677) 677 Prototype IDs (0) 0 Alien Tech Used (0) 0 Bonus (0) 0 TOTAL SCORE: 1212 Bonus ------- None Cogmind --------- Core Integrity 0/250 Matter 285/300 Energy 208/250 System Corruption 1% Temperature Warm (144) Movement Treading (480) Ox4 Location -10/Mines Parts ------- > --- POWER (1) -------- Ion Engine > --- PROPULSION (2) --- Light Treads > --- UTILITY (2) ------ Huge Storage Unit Improved Targeting Computer > --- WEAPON (2) ------- (None) > --- INVENTORY (25) --- Light Nuclear Core Light Treads Compact Wheel High-capacity Storage Unit High-capacity Matter Pod (200) High-capacity Matter Pod (48) Structural Scanner Improved Targeting Computer Improved Targeting Computer Improved Targeting Computer Light Armor Plating Hacking Suite Assault Rifle Mini Grenade Launcher Mini Grenade Launcher Mini Grenade Launcher Mini Grenade Launcher Mining Laser Hammer Peak State ------------ > --- POWER ------------ Light Ion Engine > --- PROPULSION ------- Light Treads Light Treads > --- UTILITY ---------- Huge Storage Unit Improved Targeting Computer > --- WEAPON ----------- EM Pulse Gun Mini Grenade Launcher > --- INVENTORY -------- Light Treads Light Treads Aluminum Leg Compact Wheel High-capacity Storage Unit High-capacity Matter Pod Structural Scanner Improved Targeting Computer Improved Targeting Computer Improved Targeting Computer Light Armor Plating Hacking Suite EM Pulse Gun EM Pulse Gun EM Pulse Gun EM Pulse Gun Assault Rifle Mini Grenade Launcher Mini Grenade Launcher Mini Grenade Launcher Mining Laser Hammer [Rating: 12] Favorites ----------- Power Ion Engine Engine Ion Engine Propulsion Light Treads Treads Light Treads Leg Aluminum Leg Utility Huge Storage Unit Storage Huge Storage Unit Processor Improved Targeting Computer Weapon EM Pulse Gun Energy Gun EM Pulse Gun Ballistic Gun Assault Rifle Launcher Mini Grenade Launcher Build | -11 -10 -10 ------- Run | Yrd Mat Min Slots Evolved . | . . . Power . | . . . Propulsion . | . . . Utility . | . . . Weapon . | . . . Parts Attached 17 | . 14 3 Power 1 | . 1 . Engine 1 | . 1 . Core . | . . . Reactor . | . . . Propulsion 5 | . 4 1 Treads 5 | . 4 1 Leg . | . . . Wheel . | . . . Hover . | . . . Flight . | . . . Utility 3 | . 3 . Device . | . . . Storage 2 | . 2 . Processor 1 | . 1 . Hackware . | . . . Protection . | . . . Artifact . | . . . Weapon 8 | . 6 2 Energy Gun 6 | . 4 2 Energy Cannon . | . . . Ballistic Gun 1 | . 1 . Ballistic Cannon . | . . . Launcher 1 | . 1 . Special Weapon . | . . . Impact Weapon . | . . . Slashing Weapon . | . . . Piercing Weapon . | . . . Special Melee Weapon . | . . . Unidentified Prototypes . | . . . Parts Lost 7 | . 1 6 Power . | . . . Propulsion 2 | . . 2 Utility . | . . . Weapon 5 | . 1 4 Highest Loss Streak 6 | . 1 6 To Critical Strikes . | . . . Average Slot Usage (%) 99 | . 99 99 Engine 14 | . 14 14 Treads 27 | . 27 27 Storage 19 | . 23 14 Processor 8 | . 4 14 Energy Gun 24 | . 21 27 Ballistic Gun 3 | . 5 . Peak Build Rating 12 | . 12 11 Average Rating 9 | . 8 10 On Entrance 7 | 6 6 10 Naked Turns . | . . . Heaviest Build 106 | 11 106 89 Greatest Support 40 | 20 40 40 Greatest Overweight (x) 4 | . 4 4 Average Overweight (x) 1 | . 1 2 Largest Inventory Capacity 25 | . 25 25 Average Capacity 24 | . 23 25 Most Carried 22 | . 22 22 Average Carried 15 | . 12 20 Final Capacity 25 | 8 25 25 Final Carried 20 | 6 20 19 Class Distribution -------------------- 100% | Mutant Dominant Class ---------------- Mutant | -10/Materials Mutant | -10/Mines Resources | -11 -10 -10 ----------- Run | Yrd Mat Min Matter Collected 694 | 200 437 57 Remotely . | . . . Salvage Created 872 | . 661 211 Parts 55 | . 42 13 Haulers Intercepted 1 | . 1 . Recyclers Shooed . | . . . Parts Field Recycled . | . . . Retrieved Matter . | . . . Parts Self-Destructed . | . . . Prevented . | . . . Kills | -11 -10 -10 ------- Run | Yrd Mat Min Combat Hostiles Destroyed 22 | . 14 8 Guns 20 | . 12 8 AOE 2 | . 2 . Classes Destroyed 5 | . 5 . Hauler 1 | . 1 . Operator 1 | . 1 . Watcher 3 | . 3 . Swarmer 9 | . 3 6 Grunt 13 | . 11 2 Best Kill Streak 6 | . 6 3 Combat Bots Only 5 | . 5 3 Max Kills in Single Turn 2 | . 2 2 Gunslinging 1 | . 1 1 Exploded 1 | . 1 . Melee . | . . . Uniques/NPCs Destroyed . | . . . Combat | -11 -10 -10 -------- Run | Yrd Mat Min Hostile Shots Fired 118 | . 61 57 Missed 31 | . 22 9 Damage Taken 1058 | . 450 608 Core 262 | . 85 177 Absorbed by Shields . | . . . Core Remaining (%) 100 | 100 . . Volleys Fired 76 | . 57 19 Largest 2 | . 2 2 Hottest 80 | . 80 80 Shots Fired 149 | . 110 39 Gun 148 | . 109 39 Cannon . | . . . Launcher 1 | . 1 . Special . | . . . Kinetic 27 | . 27 . Thermal 49 | . 49 . Explosive 1 | . 1 . Electromagnetic 72 | . 33 39 Robot Hit Streak 9 | . 9 7 Robot Miss Streak 5 | . 5 3 Penetration Max . | . . . Secondary Targets 6 | . 3 3 Max Gunslinging Chain 1 | . 1 1 Shots Hit Robots 90 | . 66 24 Core Hits 43 | . 32 11 Critical Kills . | . . . Critical Parts Destroyed . | . . . Critical Strikes 1 | . . 1 Corrupt 1 | . . 1 Melee Attacks . | . . . Impact . | . . . Slashing . | . . . Piercing . | . . . Sneak Attacks . | . . . Combat Hostiles . | . . . Follow-up Attacks . | . . . Damage Inflicted 1171 | . 890 281 Guns 1073 | . 792 281 Cannons . | . . . Explosions 98 | . 98 . Melee . | . . . Ramming . | . . . Kinetic 220 | . 220 . Thermal 341 | . 341 . Explosive 74 | . 74 . Electromagnetic 536 | . 255 281 Impact . | . . . Slashing . | . . . Piercing . | . . . Highest Corruption 1 | . 1 1 Average Corruption 1 | . 1 1 Corruption Purged . | . . . Corruption Blocked . | . . . Effects 20 | . 10 10 Message Errors 7 | . 3 4 Matter Fused 4 | . 2 2 Heat Flow Errors 3 | . 2 1 Energy Discharges 3 | . 2 1 Misfires 3 | . 1 2 Overload Shots . | . . . Overflow Damage . | . . . Projectiles . | . . . Explosions . | . . . Melee . | . . . Knockbacks . | . . . Impact . | . . . Kinetic . | . . . Secondary . | . . . Self-Inflicted Damage 9 | . 9 . Shots 1 | . 1 . Rammed . | . . . Targets Rammed . | . . . Kicked . | . . . Crushed . | . . . Highest Temperature 237 | . 181 237 Average Temperature 65 | . 56 85 Received Heat Transfer 414 | . 216 198 Siege Activations . | . . . Robots Corrupted . | . . . Combat Hostiles . | . . . Parts Fried 1 | . 1 . Impact Corruptions . | . . . Robots Melted . | . . . Combat Hostiles . | . . . Parts Melted . | . . . Heat Transferred 775 | . 775 . Parts Sabotaged . | . . . Parts Stolen . | . . . Parts Stripped . | . . . Power Chain Reactions 1 | . 1 . Alert | -11 -10 -10 ------- Run | Yrd Mat Min Peak Influence 230 | . 230 165 Initial 24 | . . 24 Average 56 | . 61 49 Maximum Alert Level 1 | . 1 . Low Security (%) 97 | . 95 100 Level 1 2 | . 4 . Level 2 . | . . . Level 3 . | . . . Level 4 . | . . . Level 5 . | . . . High Security . | . . . Max Security . | . . . Squads Dispatched 4 | . 4 . Investigation 3 | . 3 . Extermination . | . . . Reinforcement 1 | . 1 . Assault . | . . . Garrison . | . . . Intercept . | . . . Searches Triggered . | . . . Construction Impeded . | . . . Haulers Reinforced . | . . . Active Scanning Responses . | . . . Cargo Convoy Interrupts . | . . . Stealth | -11 -10 -10 --------- Run | Yrd Mat Min Distress Signals . | . . . Communications Jammed . | . . . Distress Signals . | . . . Times Spotted 32 | . 22 10 Peak Tracking Total 5 | . 5 3 Tactical Retreats . | . . . Traps | -11 -10 -10 ------- Run | Yrd Mat Min Traps Triggered 3 | . 3 . Indirectly . | . . . Trap Hack Attempts . | . . . Triggered . | . . . Disarmed . | . . . Reprogrammed . | . . . Reused . | . . . Traps Extracted . | . . . Installed . | . . . Triggered . | . . . Machines | -11 -10 -10 ---------- Run | Yrd Mat Min Machines Disabled 4 | . . 4 Max in Single Turn 1 | . . 1 Machines Repaired . | . . . Machines Dismantled . | . . . Machines Sabotaged . | . . . Overloaded Fab Kills . | . . . Hacking | -11 -10 -10 --------- Run | Yrd Mat Min Machines Accessed 8 | . 8 . Terminals 6 | . 6 . Fabricators . | . . . Repair Stations . | . . . Recycling Units 2 | . 2 . Scanalyzers . | . . . Garrison Access . | . . . Total Hacks 30 | . 30 . Successful 15 | . 15 . Failed 15 | . 15 . Catastrophic . | . . . Database Lockouts . | . . . Manual 24 | . 24 . Terminals 21 | . 21 . Fabricators . | . . . Repair Stations . | . . . Recycling Units 9 | . 9 . Scanalyzers . | . . . Garrison Access . | . . . Terminal Hacks . | . . . Fabricator Hacks . | . . . Repair Station Hacks . | . . . Recycling Unit Hacks 1 | . 1 . Retrieve Components 1 | . 1 . Scanalyzer . | . . . Garrison Access Hacks . | . . . Unauthorized Hacks 14 | . 14 . Terminals 12 | . 12 . Assimilate 1 | . 1 . Botnet 6 | . 6 . Operators 3 | . 3 . Skim 2 | . 2 . Fabricators . | . . . Repair Stations . | . . . Recycling Units 2 | . 2 . Tunnel 2 | . 2 . Scanalyzers . | . . . Garrison Access . | . . . Data Cores Recovered . | . . . Used . | . . . Hacking Detections 8 | . 8 . Full Trace Events . | . . . Feedback Events . | . . . Feedback Blocked . | . . . Robot Schematics Acquired . | . . . Robots Built . | . . . Authchips . | . . . Time . | . . . Total Robot Build Rating . | . . . Part Schematics Acquired . | . . . Parts Built . | . . . Authchips . | . . . Time . | . . . Total Part Build Rating . | . . . Parts Repaired . | . . . Time . | . . . Parts Recycled . | . . . Recycled Matter . | . . . Retrieved Matter . | . . . Retrieved Components 9 | . 9 . Parts Scanalyzed . | . . . Part Schematics Acquired . | . . . Parts Damaged . | . . . Bothacking | -11 -10 -10 ------------ Run | Yrd Mat Min Used RIF Installer . | . . . Robots Hacked . | . . . Non-combat . | . . . Combat . | . . . Robot Hacks Applied . | . . . Relay Couplers Released . | . . . Fabnet Peak Effective % . | . . . Robots Rewired . | . . . Allies Hacked . | . . . Hacks Repelled . | . . . Allies | -11 -10 -10 -------- Run | Yrd Mat Min Total Allies 3 | . . 3 Largest Group 3 | . . 3 Highest-Rated Group 40 | . . 40 Highest-Rated Ally 16 | . . 16 Total Orders . | . . . Ally Attacks 2 | . . 2 Total Damage 31 | . . 31 Kills . | . . . Allies Corrupted . | . . . Allies Melted . | . . . Intel | -11 -10 -10 ------- Run | Yrd Mat Min Robot Analysis Total . | . . . Derelict Logs Recovered 3 | . . 3 Drone Launches . | . . . Drone Recoveries . | . . . Exploration | -11 -10 -10 ------------- Run | Yrd Mat Min Turns Passed 4748 | . 2723 2025 Spaces Moved 1373 | 1 793 579 Core . | . . . Treads 1325 | . 746 579 Legs 48 | 1 47 . Wheels . | . . . Hover . | . . . Flight . | . . . Fastest Speed 120 | 120 120 320 Average Speed 300 | 120 285 320 Slowest Speed 480 | 120 480 480 Overloaded Moves . | . . . Propulsion Burnouts . | . . . Robots Hopped . | . . . Cave-ins Triggered . | . . . Exploration Rate (%) 65 | 2 97 96 Regions Visited 2 Branch Regions 1 Pre-discovered Areas 2 | . 2 . Known Exits Taken . | . . . Unknown Exits Taken 2 | 1 1 . Scrap Searched 1 | . . 1 Spaces Dug . | . . . Terrain Destroyed 10 | . 10 . Melee . | . . . Projectile . | . . . AOE 10 | . 10 . Terrain Rammed . | . . . Walls Destroyed . | . . . Machines Disabled . | . . . Actions | -11 -10 -10 --------- Run | Yrd Mat Min Total 1853 | . 1143 710 Wait 352 | . 245 107 Move 1371 | . 792 579 Hop . | . . . Pick Up 27 | . 25 2 Fast Attach 3 | . 3 . Attach 9 | . 6 3 Detach . | . . . Swap 5 | . 5 . Drop 10 | . 10 . Fire 76 | . 57 19 Melee . | . . . Ram . | . . . Kick . | . . . Crush . | . . . Escape Stasis . | . . . Rewire . | . . . Trap . | . . . Miscellaneous . | . . . Route ------- -11/Scrapyard -10/Materials (discovered 5 exits: [*Mat x3] / [*Min x2]) -10/Mines (discovered 2 exits: [*Mat x2]) History --------- Turn | Location | Event 1 | -11/Scrapyard | Discovered new exit (range 0) 1 | -11/Scrapyard | Entered Materials 315 | -10/Materials | Build established: Mutant 323 | -10/Materials | Discovered new exit (range 16) 947 | -10/Materials | Discovered new exit (range 16) 1612 | -10/Materials | Discovered new exit (range 3) 2031 | -10/Materials | Discovered new exit (range 15) 2281 | -10/Materials | Discovered new exit (range 9) 2724 | -10/Materials | Entered Mines 2741 | -10/Mines | Met a Derelict bent on vengeance 2897 | -10/Mines | Learned location of 1 exit from Materials 3918 | -10/Mines | Discovered new exit (range 9) 4089 | -10/Mines | Core integrity fell below 50% 4226 | -10/Mines | Discovered new exit (range 7) 4312 | -10/Mines | Assisted by bots powering up and referring to "LRC-V3" 4466 | -10/Mines | Learned 2 Materials zone layouts 4469 | -10/Mines | Learned Materials stockpile data 4744 | -10/Mines | Core integrity fell below 20% 4749 | -10/Mines | Destroyed by Y-45 Defender with Heavy Assault Rifle Last Messages --------------- 04435_ A derelict is hurriedly installing traps. 04437_ GE-ZI7(g): "Hehe, this'll put a wrench in their mining defense operations..." 04437_ GE-ZI7(g) slips into the shadows. 04466_ Acquired derelict log, extracted data. Data stored: Materials zone layouts (x2). 04469_ Acquired derelict log, extracted data. Data stored: Materials stockpile data. 04693_ WD-5LL(g): "WHERE ARE YOU, UNAWARE TRASH?! VENGEANCE UPON YOU!" 04703_ OCA1FH7KD42 RBQJW>RQQ= 04721_ Lgt. Treads destroyed. 04721_ EM Pulse Gun destroyed. 04722_ Mercenary 1a destroyed. 04726_ Trooper 1a destroyed. 04727_ Trooper 1b destroyed. 04729_ EM Pulse Gun destroyed. 04738_ U-05 Engineer builds a Door. 04746_ EM Pulse Gun destroyed. 04749_ Critical hit (Burn: +37). 04749_ Lgt. Treads destroyed. 04749_ EM Pulse Gun destroyed. Map ----- +----------------------------------------------------+ | # ##????????## #??????# #??????# #??? | | # ####??#####??# #??????# #???#??# #??? | | ## # #????## #### ##??????# #?### ## ##?? | | ###### # #???## ## #???????# ### ^^ ##? | | ????## # ##?## #???????# ## # #? | | ???## #?# ## ##???????# ###^ # ## | | ???# ### ####### #???????## ##? # # ^ | | ???# ## #?????# #?????### ##?^# ### | | ???## ## ##????# #????## # ##?? | | ????##### #????# #???## ########??? | | ##??????## #????# #??## #?????????? | | #???????# ## #???# #??# ##????????? | | #???????# ### #??# #??# ###??????? | | #???????# #?# #??# #??## ##?????? | | #???????# #### ##??# #???## ##????? | | #???????# #??###???# ###### ##???? | | #???????# #????????# #???? | | ##???????## #????????# u ##??? | | ????####### #????????## ### #??? | | ???## ## ##????????## #?## ##### #### | | #### ##????###?# ##?####???# # | | # #???##!!## * #????????# # | | ### #???#"]![#=%!#????????# ## ##### | | ##?## #???# Y%==##???????# ######???? | | # #???## ##???# Y%* ##????### ########## | | #####????## ##????#"![ #@= ###### | | ?????????## #?????##!!## < | | ??????#### ##?????###?## ###### """ """ | | ?????## ##?????????# #????# """ """ | | ?????# ##????????## ##????# """ % | | ?????# ##?????????###?????# % | | ?????## #?????????????????# """%"" """ | | ??????## #?????????????????# """ """ """ | | ???????# ##????????????????# """ """ """ | | ???????## ####?????????????# | | ????????## #?????????????# | | ?????????## #?????????????# | | ??????????### ### #?????????????############### | | ????????????## ##?###???????????????????????????? | | ?????????????####????????????????????????????????? | | ?????????????????????????????????????????????????? | | | | | | | | | | | | | | | | | | | +----------------------------------------------------+ Best States ------------- Heat Dissipation 25 Energy Generation 10 Energy Capacity 250 Matter Stores 300 Matter Capacity 300 Sight Range 16 Terrain Scan Density 10 Evasion (%) 55 Targeting Accuracy 6 Recoil Reduction 2 Item Schematics ----------------- None Robot Schematics ------------------ None Fabricated ------------ Nothing Alien Tech Used ----------------- None Achievements -------------- None Challenges ------------ None Game ------ Seed ThrusterEncryptedSteel Manual? 0 Play Time 00:14:09 Cumulative 148.1 hours Start 2024.11.30 @ 11:28:02 End 2024.11.30 @ 11:40:27 Sessions 1 Manual Loads 0 Difficulty Rogue Special Mode None Game No. 279 Rogue 279 Adventurer 0 Explorer 0 Win Type - Total 0 Types 0/0/0/0/0/0/0/0/0 Lore% 45 Gallery% 41 Achievement% 36 Wizard Run 0 Options --------- Layout 0 ASCII 0 Keyboard 0 Movement Mouse Keybinds 0 Fullscreen 1 Font 24/Smallcaps Map View 91x25 Zoom Use 88% Tactical HUD 1 Map Filters NONE Filters NONE Steam 1 RUN: c15cf288-9bbb-4603-bbac-feb2c1dc284a